Workbook

Sheet MSU
B1: Ville Kolehmainen | E1: 18.5.1983 Imatra
B2: SUPERPESIS | E2: Runkosarja | I2: Kärkilyönnit (KL), pesänvälit | P2: Ylempi loppusarja | W2: Alempi loppusarja | AD2: Arvo-ottelut | AH2: Mitalit
B3: Vuosi | C3: Sija | D3: Seura | E3: OTT | F3: KUN | G3: LÖI | H3: TOI | I3: KL | J3: 0 > 1 | K3: 1 > 2 | L3: 2 > 3 | M3: 3 > k | N3: KL-% | P3: OTT | Q3: KUN | R3: LÖI | S3: TOI | T3: KL | U3: KL-% | W3: OTT | X3: KUN | Y3: LÖI | Z3: TOI | AA3: KL | AB3: KL-% | AD3: IL | AE3: LL | AF3: hSM | AG3: K | AH3: H | AI3: P
B4: 2001 | C4: 9. | D4: Pesä Ysit | F4: suomensarja
B5: 2001 | C5: 9. | D5: IPV | E5: 5 | F5: 0 | G5: 0 | H5: 1 | I5: 0 | J5: 0 | K5: 0 | L5: 0 | M5: 0 | N5: 0.0 %
B6: 2002 | C6: 7. | D6: IPV 2 | F6: suomensarja
B7: 2003 | C7: 10. | D7: IPV | E7: 26 | F7: 1 | G7: 4 | H7: 1 | I7: 25 | J7: 7 | K7: 9 | L7: 4 | M7: 5 | N7: 31.3 % | W7: 7 | X7: 1 | Y7: 5 | Z7: 1 | AA7: 12 | AB7: 27.9 %
B8: 2004 | C8: 4. | D8: IPV | F8: ykköspesis | W8: 7 | X8: 1 | Y8: 9 | Z8: 2 | AA8: 21 | AB8: 39.6 %
B9: 2005 | C9: 1. | D9: IPV | F9: ykköspesis | W9: 7 | X9: 0 | Y9: 2 | Z9: 0 | AA9: 5 | AB9: 35.7 %
B10: 2006 | C10: 8. | D10: IPV 2 | F10: suomensarja
B11: 2007 | C11: 8. | D11: IPV 2 | F11: suomensarja
B12: 2007 | C12: 4. | D12: IPV | F12: ykköspesis
B13: 2008 | C13: 3. | D13: IPV | F13: ykköspesis
B14: 2009 | C14: 4. | D14: IPV | F14: ykköspesis
B15: 2010 | C15: 10. | D15: IPV | F15: ykköspesis
B16: 2011 | C16: 9. | D16: IPV | F16: ykköspesis
B17: 2012 | C17: 12. | D17: IPV | F17: ykköspesis
B18: 2013
B19: 2014 | C19: 8. | D19: IPV 2 | F19: suomensarja
B20: 2014 | C20: 1. | D20: IPV | F20: ykköspesis | W20: 3 | X20: 0 | Y20: 2 | Z20: 0 | AA20: 4 | AB20: 25.0 %
B21: 2015 | C21: 4. | D21: IPV | F21: ykköspesis
B22: ****
B23: 2019 | C23: 7. | D23: IPV 2 | F23: suomensarja
B24: 2020 | C24: 7. | D24: IPV 2 | F24: suomensarja
B25: Yhteensä | E25: 31 | F25: 1 | G25: 4 | H25: 2 | I25: 25 | J25: 7 | K25: 9 | L25: 4 | M25: 5 | N25: 30.1 % | P25: 0 | Q25: 0 | R25: 0 | S25: 0 | T25: 0 | U25: 0.0 % | W25: =PRODUCT(E31) -> 24 | X25: =PRODUCT(F31) -> 2 | Y25: 18 | Z25: 3 | AA25: 42 | AB25: =PRODUCT(N31) -> 35.0 % | AD25: 0 | AE25: 0 | AF25: 0 | AG25: 0 | AH25: 0 | AI25: 0
B26: Pesispörssi | D26: 24.0
B28: URA SUPERISSA | E28: OTT | F28: KUN | G28: LÖI | H28: TOI | I28: KL | K28: ka/L | L28: ka/T | M28: ka/KL | N28: KL-% | P28: ENSIMMÄISET RUNKOSARJASSA
B29: Runkosarja | E29: 31 | F29: 1 | G29: 4 | H29: 2 | I29: 25 | K29: 0.16 | L29: 0.06 | M29: 0.81 | N29: 30.1 % | P29: Ottelu | R29: 27.05. 2001 Tahko - IPV 2-0 (14-0, 7-2) | AA29: 1. ottelu | AE29: 18 v 0 kk 9 pv
B30: Ylempi loppusarja | P30: Lyöty | R30: 13.05. 2003 PattU - IPV 2-0 (6-1, 4-0) | AA30: 6. ottelu | AE30: 19 v 11 kk 25 pv
B31: Alempi loppusarja | E31: 24 | F31: 2 | G31: 18 | H31: 3 | I31: 42 | K31: 0.83 | L31: 0.13 | M31: 1.75 | N31: 35.0 % | P31: Tuotu | R31: 29.07. 2001 IPV - LP 2-1 (9-6, 1-5, 1-0) | AA31: 5. ottelu | AE31: 18 v 2 kk 11 pv
B32: KAIKKI | E32: 55 | F32: 3 | G32: 22 | H32: 5 | I32: 67 | K32: 0.45 | L32: 0.09 | M32: 1.22 | N32: 33.0 % | P32: Kunnari | R32: 13.07. 2003 IPV - Lippo 2-1 (2-6, 5-3, 2-0) | AA32: 23. ottelu | AE32: 20 v 1 kk 25 pv
B34: Seurat | D34: IPV = Imatran Pallo-Veikot (1955), kasvattajaseura | N34: Pesä Ysit = Pesä Ysit, Lappeenranta (1976)

Sheet MYP, MSS
B1: Ville Kolehmainen | E1: 18.5.1983 Imatra
B2: YKKÖSPESIS | E2: Runkosarja | L2: Runkosarja TOP-10 | Q2: Jatkosarjat | X2: SUOMENSARJA | AA2: Runkosarja | AH2: Runkosarja TOP-10 | AM2: Jatkosarjat
B3: Vuosi | C3: Sija | D3: Seura | E3: OTT | F3: KUN | G3: LÖI | H3: TOI | I3: KL | J3: KL-% | L3: LÖI | M3: TOI | N3: L+T | O3: KL | Q3: OTT | R3: KUN | S3: LÖI | T3: TOI | U3: KL | V3: KL-% | X3: Vuosi | Y3: Sija | Z3: Seura | AA3: OTT | AB3: KUN | AC3: LÖI | AD3: TOI | AE3: KL | AF3: KL-% | AH3: LÖI | AI3: TOI | AJ3: L+T | AK3: KL | AM3: OTT | AN3: KUN | AO3: LÖI | AP3: TOI | AQ3: KL | AR3: KL-%
X4: 2001 | Y4: 9. | Z4: Pesä Ysit | AA4: 10 | AB4: 1 | AC4: 12 | AD4: 12 | AE4: 47 | AF4: 52.2 % | AG4: 90
X5: 2002 | Y5: 7. | Z5: IPV 2 | AA5: 15 | AB5: 4 | AC5: 23 | AD5: 17 | AE5: 83 | AF5: 58.5 % | AG5: 142 | AH5: 8. | AJ5: 4.
B7: 2004 | C7: 4. | D7: IPV | E7: 18 | F7: 2 | G7: 23 | H7: 4 | I7: 56 | J7: 41.8 % | K7: 134 | Q7: 2 | R7: 0 | S7: 4 | T7: 0 | U7: 7 | V7: 63.6 % | W7: 11
B8: 2005 | C8: 1. | D8: IPV | E8: 22 | F8: 1 | G8: 32 | H8: 10 | I8: 50 | J8: 46.7 % | K8: 107
X9: 2006 | Y9: 8. | Z9: IPV 2 | AA9: 13 | AB9: 5 | AC9: 26 | AD9: 17 | AE9: 73 | AF9: 65.2 % | AG9: 112 | AH9: 8. | AJ9: 8.
B10: 2007 | C10: 4. | D10: IPV | E10: 9 | F10: 1 | G10: 4 | H10: 3 | I10: 32 | J10: 52.5 % | K10: 61 | X10: 2007 | Y10: 8. | Z10: IPV 2 | AA10: 2 | AB10: 1 | AC10: 3 | AD10: 1 | AE10: 12 | AF10: 54.5 % | AG10: 22
B11: 2008 | C11: 3. | D11: IPV | E11: 18 | F11: 1 | G11: 22 | H11: 6 | I11: 68 | J11: 53.5 % | K11: 127 | Q11: 2 | R11: 0 | S11: 1 | T11: 0 | U11: 6 | V11: 46.2 % | W11: 13
B12: 2009 | C12: 4. | D12: IPV | E12: 18 | F12: 0 | G12: 18 | H12: 3 | I12: 71 | J12: 50.4 % | K12: 141 | Q12: 2 | R12: 0 | S12: 2 | T12: 0 | U12: 6 | V12: 54.5 % | W12: 11
B13: 2010 | C13: 10. | D13: IPV | E13: 17 | F13: 3 | G13: 28 | H13: 8 | I13: 93 | J13: 54.7 % | K13: 170 | Q13: 2 | R13: 0 | S13: 1 | T13: 1 | U13: 7 | V13: 36.8 % | W13: 19
B14: 2011 | C14: 9. | D14: IPV | E14: 22 | F14: 3 | G14: 33 | H14: 8 | I14: 95 | J14: 48.0 % | K14: 198
B15: 2012 | C15: 12. | D15: IPV | E15: 10 | F15: 0 | G15: 16 | H15: 3 | I15: 43 | J15: 50.6 % | K15: 85
B17: 2014 | C17: 1. | D17: IPV | E17: 13 | F17: 4 | G17: 28 | H17: 5 | I17: 54 | J17: 49.5 % | K17: 109 | Q17: 2 | R17: 0 | S17: 1 | T17: 0 | U17: 5 | V17: 33.3 % | W17: 15 | X17: 2014 | Y17: 8. | Z17: IPV 2 | AA17: 2 | AB17: 0 | AC17: 3 | AD17: 0 | AE17: 9 | AF17: 52.9 % | AG17: 17
B18: 2015 | C18: 4. | D18: IPV | E18: 20 | F18: 1 | G18: 26 | H18: 2 | I18: 64 | J18: 42.1 % | K18: 152 | Q18: 4 | R18: 0 | S18: 4 | T18: 0 | U18: 11 | V18: 37.9 % | W18: 29
X20: 2019 | Y20: 7. | Z20: IPV 2 | AA20: 1 | AB20: 0 | AC20: 3 | AD20: 0 | AE20: 5 | AF20: 50.0 % | AG20: 10
X21: 2020 | Y21: 7. | Z21: IPV 2 | AA21: 3 | AB21: 0 | AC21: 6 | AD21: 0 | AE21: 12 | AF21: 40.0 % | AG21: 30
B22: YHTEENSÄ | E22: =SUM(E4:E21) -> 167 | F22: =SUM(F4:F21) -> 16 | G22: =SUM(G4:G21) -> 230 | H22: =SUM(H4:H21) -> 52 | I22: =SUM(I4:I21) -> 626 | J22: =PRODUCT(I22/K22) -> 48.8 % | K22: =SUM(K4:K21) -> 1284 | Q22: =SUM(Q4:Q21) -> 14 | R22: =SUM(R4:R21) -> 0 | S22: =SUM(S4:S21) -> 13 | T22: =SUM(T4:T21) -> 1 | U22: =SUM(U4:U21) -> 42 | V22: =PRODUCT(U22/W22) -> 42.9 % | W22: =SUM(W4:W21) -> 98 | X22: YHTEENSÄ | AA22: =SUM(AA4:AA21) -> 46 | AB22: =SUM(AB4:AB21) -> 11 | AC22: =SUM(AC4:AC21) -> 76 | AD22: =SUM(AD4:AD21) -> 47 | AE22: =SUM(AE4:AE21) -> 241 | AF22: =PRODUCT(AE22/AG22) -> 57.0 % | AG22: =SUM(AG4:AG21) -> 423 | AM22: =SUM(AM4:AM21) -> 0 | AN22: =SUM(AN4:AN21) -> 0 | AO22: =SUM(AO4:AO21) -> 0 | AP22: =SUM(AP4:AP21) -> 0 | AQ22: =SUM(AQ4:AQ21) -> 0 | AR22: 0.0 % | AS22: =SUM(AS4:AS21) -> 0
B24: KAIKKI OTTELUT | E24: OTT | F24: KUN | G24: LÖI | H24: TOI | I24: KL | J24: KL-% | L24: ka/L | M24: ka/T | N24: ka/l+t | O24: ka/kl | R24: Seurat | T24: IPV = Imatran Pallo-Veikot (1955), kasvattajaseura
B25: SUPERPESIS | E25: 55 | F25: 3 | G25: 22 | H25: 5 | I25: 67 | J25: 33.0 % | K25: =PRODUCT(I25/J25) -> 203.030303 | L25: =PRODUCT((F25+G25)/E25) -> 0.45 | M25: =PRODUCT(H25/E25) -> 0.09 | N25: =PRODUCT((F25+G25+H25)/E25) -> 0.55 | O25: =PRODUCT(I25/E25) -> 1.22 | T25: Pesä Ysit = Pesä Ysit, Lappeenranta (1976)
B26: YKKÖSPESIS | E26: =PRODUCT(E22+Q22) -> 181 | F26: =PRODUCT(F22+R22) -> 16 | G26: =PRODUCT(G22+S22) -> 243 | H26: =PRODUCT(H22+T22) -> 53 | I26: =PRODUCT(I22+U22) -> 668 | J26: =PRODUCT(I26/K26) -> 48.3 % | K26: =PRODUCT(K22+W22) -> 1382 | L26: =PRODUCT((F26+G26)/E26) -> 1.43 | M26: =PRODUCT(H26/E26) -> 0.29 | N26: =PRODUCT((F26+G26+H26)/E26) -> 1.72 | O26: =PRODUCT(I26/E26) -> 3.69
B27: SUOMENSARJA | E27: =PRODUCT(AA22+AM22) -> 46 | F27: =PRODUCT(AB22+AN22) -> 11 | G27: =PRODUCT(AC22+AO22) -> 76 | H27: =PRODUCT(AD22+AP22) -> 47 | I27: =PRODUCT(AE22+AQ22) -> 241 | J27: =PRODUCT(I27/K27) -> 57.0 % | K27: =PRODUCT(AG22+AS22) -> 423 | L27: =PRODUCT((F27+G27)/E27) -> 1.89 | M27: =PRODUCT(H27/E27) -> 1.02 | N27: =PRODUCT((F27+G27+H27)/E27) -> 2.91 | O27: =PRODUCT(I27/E27) -> 5.24
B28: YHTEENSÄ | E28: =SUM(E25:E27) -> 282 | F28: =SUM(F25:F27) -> 30 | G28: 341 | H28: 105 | I28: 976 | J28: =PRODUCT(I28/K28) -> 48.6 % | K28: =SUM(K25:K27) -> 2008.030303 | L28: =PRODUCT((F28+G28)/E28) -> 1.32 | M28: =PRODUCT(H28/E28) -> 0.37 | N28: =PRODUCT((F28+G28+H28)/E28) -> 1.69 | O28: =PRODUCT(I28/E28) -> 3.46

Sheet Arvo-ottelut
B1: ITÄ - LÄNSI - KORTTI
B2: Ville Kolehmainen | C2: 18.5.1983 Imatra
B3: B - POJAT | C3: Itä - Länsi, tulos | D3: Joukkue | E3: Seura | G3: V | H3: T | I3: H | J3: Up. | K3: Lj. | L3: Palk. | M3: O | N3: K | O3: L | P3: T | Q3: KL | R3: 1 | S3: 2 | T3: 3 | U3: k | V3: KL-% | W3: Pelinjohtaja | X3: Yleisöä
B4: 04.08. 2000 Oulu | C4: 1-2 (1-0, 4-6, 0-1) | D4: Itä | E4: IPV | I4: 1 | K4: jok | M4: 1 | Q4: 1/5 | R4: 1/1 | S4: 0/2 | T4: 0/1 | U4: 0/1 | V4: 20.0 % | W4: Timo Allinen | X4: 1237
B6: A - POJAT | C6: Itä - Länsi, tulos | D6: Joukkue | E6: Seura | G6: V | H6: T | I6: H | J6: Up. | K6: Lj. | L6: Palk. | M6: O | N6: K | O6: L | P6: T | Q6: KL | R6: 1 | S6: 2 | T6: 3 | U6: k | V6: KL-% | W6: Pelinjohtaja | X6: Yleisöä
B7: 29.06. 2002 Seinäjoki | C7: 2-1 (4-0, 0-6, 1-0) | D7: Itä | E7: IPV | G7: 1 | K7: jok | L7: I p | M7: 1 | O7: 2 | Q7: 4/8 | S7: 1/2 | T7: 1/3 | U7: 2/3 | V7: 50.0 % | W7: Jouni Vatanen | X7: 2763
B8: 02.08. 2003 Sotkamo | C8: 1-0 (2-2, 4-2) | D8: Itä | E8: IPV | G8: 1 | J8: 2k | K8: 9 | M8: 1 | P8: 1 | Q8: 2/4 | S8: 1/2 | T8: 1/1 | U8: 0/1 | V8: 50.0 % | W8: Sami Siurua | X8: 2665
B9: Yhteensä | G9: 1 | M9: 2 | O9: 2 | P9: 1 | Q9: 6/12 | S9: 2/4 | T9: 2/4 | U9: 2/4 | V9: 50.0 %
